Workbook

Sheet Proračun za poroko
B2: MARIJA + MIHA SE BOSTA POROČILA
B5: KATEGORIJA | C5: PREDVIDENI STROŠKI | D5: DEJANSKI STROŠKI | E5: ODSTOPANJE | F5: % PRORAČUNA | J5: Nerazvrščeno | K5: Predvideni stroški | L5: Dejanski stroški | M5: Predvideni stroški – razvrstitev stroškov | N5: Razvrsitev | O5: št. | P5: Razvrščeno
B6: =P6 -> Poročno slavje | C6: =VLOOKUP(TBL_Povzetek[[#This Row],[KATEGORIJA]],TBL_RankingData,2,FALSE) -> 14,500 € | D6: =IF(VLOOKUP(TBL_Povzetek[[#This Row],[KATEGORIJA]],TBL_RankingData,3,FALSE)=0,"",VLOOKUP(TBL_Povzetek[[#This Row],[KATEGORIJA]],TBL_RankingData,3,FALSE)) -> 12,800 € | E6: =IF(OR(TBL_Povzetek[[#This Row],[PREDVIDENI STROŠKI]]="",TBL_Povzetek[[#This Row],[DEJANSKI STROŠKI]]=""),"",TBL_Povzetek[[#This Row],[PREDVIDENI STROŠKI]]-TBL_Povzetek[[#This Row],[DEJANSKI STROŠKI]]) -> 1,700 € | F6: =TBL_Povzetek[[#This Row],[PREDVIDENI STROŠKI]]/SUM(TBL_Povzetek[PREDVIDENI STROŠKI]) -> 48.7% | J6: Poročno slavje | K6: =TBL_PoročnoSlavje[[#Totals],[OCENJENI]] -> 14500 | L6: =TBL_PoročnoSlavje[[#Totals],[DEJANSKI]] -> 12800 | M6: =K6-O6/100 -> 14499.99 | N6: =_xlfn.RANK.AVG(M6,$M$6:$M$15) -> 1 | O6: 1 | P6: =INDEX(TBL_RankingData,MATCH(O6,$N$6:$N$15,0),1) -> Poročno slavje
B7: =P7 -> Obleka | C7: =VLOOKUP(TBL_Povzetek[[#This Row],[KATEGORIJA]],TBL_RankingData,2,FALSE) -> 4,000 € | D7: =IF(VLOOKUP(TBL_Povzetek[[#This Row],[KATEGORIJA]],TBL_RankingData,3,FALSE)=0,"",VLOOKUP(TBL_Povzetek[[#This Row],[KATEGORIJA]],TBL_RankingData,3,FALSE)) -> 2,900 € | E7: =IF(OR(TBL_Povzetek[[#This Row],[PREDVIDENI STROŠKI]]="",TBL_Povzetek[[#This Row],[DEJANSKI STROŠKI]]=""),"",TBL_Povzetek[[#This Row],[PREDVIDENI STROŠKI]]-TBL_Povzetek[[#This Row],[DEJANSKI STROŠKI]]) -> 1,100 € | F7: =TBL_Povzetek[[#This Row],[PREDVIDENI STROŠKI]]/SUM(TBL_Povzetek[PREDVIDENI STROŠKI]) -> 13.4% | J7: Obleka | K7: =TBL_Obleka[[#Totals],[PREDVIDENI]] -> 4000 | L7: =TBL_Obleka[[#Totals],[DEJANSKI]] -> 2900 | M7: =K7-O7/100 -> 3999.98 | N7: 2 | O7: 2 | P7: Obleka
B8: Cvetje in dekoracija | C8: =VLOOKUP(TBL_Povzetek[[#This Row],[KATEGORIJA]],TBL_RankingData,2,FALSE) -> 3,000 € | D8: =IF(VLOOKUP(TBL_Povzetek[[#This Row],[KATEGORIJA]],TBL_RankingData,3,FALSE)=0,"",VLOOKUP(TBL_Povzetek[[#This Row],[KATEGORIJA]],TBL_RankingData,3,FALSE)) ->  | E8: =IF(OR(TBL_Povzetek[[#This Row],[PREDVIDENI STROŠKI]]="",TBL_Povzetek[[#This Row],[DEJANSKI STROŠKI]]=""),"",TBL_Povzetek[[#This Row],[PREDVIDENI STROŠKI]]-TBL_Povzetek[[#This Row],[DEJANSKI STROŠKI]]) ->  | F8: =TBL_Povzetek[[#This Row],[PREDVIDENI STROŠKI]]/SUM(TBL_Povzetek[PREDVIDENI STROŠKI]) -> 10.1% | J8: Cvetje in dekoracija | K8: =TBL_CvetjeInDekoracija[[#Totals],[PREDVIDENI]] -> 3000 | L8: =TBL_CvetjeInDekoracija[[#Totals],[DEJANSKI]] -> 0 | M8: 2999.97 | N8: 3 | O8: 3 | P8: Cvetje in dekoracija
B9: Fotografije in videoposnetki | C9: =VLOOKUP(TBL_Povzetek[[#This Row],[KATEGORIJA]],TBL_RankingData,2,FALSE) -> 2,500 € | D9: =IF(VLOOKUP(TBL_Povzetek[[#This Row],[KATEGORIJA]],TBL_RankingData,3,FALSE)=0,"",VLOOKUP(TBL_Povzetek[[#This Row],[KATEGORIJA]],TBL_RankingData,3,FALSE)) ->  | E9: =IF(OR(TBL_Povzetek[[#This Row],[PREDVIDENI STROŠKI]]="",TBL_Povzetek[[#This Row],[DEJANSKI STROŠKI]]=""),"",TBL_Povzetek[[#This Row],[PREDVIDENI STROŠKI]]-TBL_Povzetek[[#This Row],[DEJANSKI STROŠKI]]) ->  | F9: =TBL_Povzetek[[#This Row],[PREDVIDENI STROŠKI]]/SUM(TBL_Povzetek[PREDVIDENI STROŠKI]) -> 8.4% | J9: Glasba | K9: =TBL_Glasba[[#Totals],[PREDVIDENI]] -> 1800 | L9: =TBL_Glasba[[#Totals],[DEJANSKI]] -> 0 | M9: 1799.96 | N9: 5 | O9: 4 | P9: Fotografije in videoposnetki
B10: Glasba | C10: =VLOOKUP(TBL_Povzetek[[#This Row],[KATEGORIJA]],TBL_RankingData,2,FALSE) -> 1,800 € | D10: =IF(VLOOKUP(TBL_Povzetek[[#This Row],[KATEGORIJA]],TBL_RankingData,3,FALSE)=0,"",VLOOKUP(TBL_Povzetek[[#This Row],[KATEGORIJA]],TBL_RankingData,3,FALSE)) ->  | E10: =IF(OR(TBL_Povzetek[[#This Row],[PREDVIDENI STROŠKI]]="",TBL_Povzetek[[#This Row],[DEJANSKI STROŠKI]]=""),"",TBL_Povzetek[[#This Row],[PREDVIDENI STROŠKI]]-TBL_Povzetek[[#This Row],[DEJANSKI STROŠKI]]) ->  | F10: =TBL_Povzetek[[#This Row],[PREDVIDENI STROŠKI]]/SUM(TBL_Povzetek[PREDVIDENI STROŠKI]) -> 6.1% | J10: Fotografije in videoposnetki | K10: =TBL_FotografiranjeInVideo[[#Totals],[PREDVIDENI]] -> 2500 | L10: =TBL_FotografiranjeInVideo[[#Totals],[DEJANSKI]] -> 0 | M10: 2499.95 | N10: 4 | O10: 5 | P10: Glasba
B11: Spominki in darila | C11: =VLOOKUP(TBL_Povzetek[[#This Row],[KATEGORIJA]],TBL_RankingData,2,FALSE) -> 1,100 € | D11: =IF(VLOOKUP(TBL_Povzetek[[#This Row],[KATEGORIJA]],TBL_RankingData,3,FALSE)=0,"",VLOOKUP(TBL_Povzetek[[#This Row],[KATEGORIJA]],TBL_RankingData,3,FALSE)) ->  | E11: =IF(OR(TBL_Povzetek[[#This Row],[PREDVIDENI STROŠKI]]="",TBL_Povzetek[[#This Row],[DEJANSKI STROŠKI]]=""),"",TBL_Povzetek[[#This Row],[PREDVIDENI STROŠKI]]-TBL_Povzetek[[#This Row],[DEJANSKI STROŠKI]]) ->  | F11: =TBL_Povzetek[[#This Row],[PREDVIDENI STROŠKI]]/SUM(TBL_Povzetek[PREDVIDENI STROŠKI]) -> 3.7% | J11: Spominki in darila | K11: =TBL_SpominkiInDarila[[#Totals],[PREDVIDENI]] -> 1100 | L11: =TBL_SpominkiInDarila[[#Totals],[DEJANSKI]] -> 0 | M11: 1099.94 | N11: 6 | O11: 6 | P11: Spominki in darila
B12: =P12 -> Poročna prstana | C12: =VLOOKUP(TBL_Povzetek[[#This Row],[KATEGORIJA]],TBL_RankingData,2,FALSE) -> 1,100 € | D12: =IF(VLOOKUP(TBL_Povzetek[[#This Row],[KATEGORIJA]],TBL_RankingData,3,FALSE)=0,"",VLOOKUP(TBL_Povzetek[[#This Row],[KATEGORIJA]],TBL_RankingData,3,FALSE)) ->  | E12: =IF(OR(TBL_Povzetek[[#This Row],[PREDVIDENI STROŠKI]]="",TBL_Povzetek[[#This Row],[DEJANSKI STROŠKI]]=""),"",TBL_Povzetek[[#This Row],[PREDVIDENI STROŠKI]]-TBL_Povzetek[[#This Row],[DEJANSKI STROŠKI]]) ->  | F12: =TBL_Povzetek[[#This Row],[PREDVIDENI STROŠKI]]/SUM(TBL_Povzetek[PREDVIDENI STROŠKI]) -> 3.7% | J12: Poroka | K12: =TBL_Poroka[[#Totals],[PREDVIDENI]] -> 800 | L12: =TBL_Poroka[[#Totals],[DEJANSKI]] -> 0 | M12: 799.93 | N12: 8 | O12: 7 | P12: Poročna prstana
B13: Poroka | C13: =VLOOKUP(TBL_Povzetek[[#This Row],[KATEGORIJA]],TBL_RankingData,2,FALSE) -> 800 € | D13: =IF(VLOOKUP(TBL_Povzetek[[#This Row],[KATEGORIJA]],TBL_RankingData,3,FALSE)=0,"",VLOOKUP(TBL_Povzetek[[#This Row],[KATEGORIJA]],TBL_RankingData,3,FALSE)) ->  | E13: =IF(OR(TBL_Povzetek[[#This Row],[PREDVIDENI STROŠKI]]="",TBL_Povzetek[[#This Row],[DEJANSKI STROŠKI]]=""),"",TBL_Povzetek[[#This Row],[PREDVIDENI STROŠKI]]-TBL_Povzetek[[#This Row],[DEJANSKI STROŠKI]]) ->  | F13: =TBL_Povzetek[[#This Row],[PREDVIDENI STROŠKI]]/SUM(TBL_Povzetek[PREDVIDENI STROŠKI]) -> 2.7% | J13: Tiskovina | K13: =TBL_PisarniškiMaterial[[#Totals],[PREDVIDENI]] -> 500 | L13: =TBL_PisarniškiMaterial[[#Totals],[DEJANSKI]] -> 0 | M13: 499.92 | N13: 9 | O13: 8 | P13: Poroka
B14: Tiskovina | C14: =VLOOKUP(TBL_Povzetek[[#This Row],[KATEGORIJA]],TBL_RankingData,2,FALSE) -> 500 € | D14: =IF(VLOOKUP(TBL_Povzetek[[#This Row],[KATEGORIJA]],TBL_RankingData,3,FALSE)=0,"",VLOOKUP(TBL_Povzetek[[#This Row],[KATEGORIJA]],TBL_RankingData,3,FALSE)) ->  | E14: =IF(OR(TBL_Povzetek[[#This Row],[PREDVIDENI STROŠKI]]="",TBL_Povzetek[[#This Row],[DEJANSKI STROŠKI]]=""),"",TBL_Povzetek[[#This Row],[PREDVIDENI STROŠKI]]-TBL_Povzetek[[#This Row],[DEJANSKI STROŠKI]]) ->  | F14: =TBL_Povzetek[[#This Row],[PREDVIDENI STROŠKI]]/SUM(TBL_Povzetek[PREDVIDENI STROŠKI]) -> 1.7% | J14: Poročna prstana | K14: =TBL_PoročnaPrstana[[#Totals],[PREDVIDENI]] -> 1100 | L14: =TBL_PoročnaPrstana[[#Totals],[DEJANSKI]] -> 0 | M14: 1099.91 | N14: 7 | O14: 9 | P14: Tiskovina
B15: Prevoz | C15: =VLOOKUP(TBL_Povzetek[[#This Row],[KATEGORIJA]],TBL_RankingData,2,FALSE) -> 450 € | D15: =IF(VLOOKUP(TBL_Povzetek[[#This Row],[KATEGORIJA]],TBL_RankingData,3,FALSE)=0,"",VLOOKUP(TBL_Povzetek[[#This Row],[KATEGORIJA]],TBL_RankingData,3,FALSE)) ->  | E15: =IF(OR(TBL_Povzetek[[#This Row],[PREDVIDENI STROŠKI]]="",TBL_Povzetek[[#This Row],[DEJANSKI STROŠKI]]=""),"",TBL_Povzetek[[#This Row],[PREDVIDENI STROŠKI]]-TBL_Povzetek[[#This Row],[DEJANSKI STROŠKI]]) ->  | F15: =TBL_Povzetek[[#This Row],[PREDVIDENI STROŠKI]]/SUM(TBL_Povzetek[PREDVIDENI STROŠKI]) -> 1.5% | J15: Prevoz | K15: =TBL_Prevoz[[#Totals],[PREDVIDENI]] -> 450 | L15: =TBL_Prevoz[[#Totals],[DEJANSKI]] -> 0 | M15: 449.9 | N15: 10 | O15: 10 | P15: Prevoz
B16: Vsota | C16: =SUBTOTAL(109,TBL_Povzetek[PREDVIDENI STROŠKI]) -> 29,750 € | D16: =SUBTOTAL(109,TBL_Povzetek[DEJANSKI STROŠKI]) -> 15,700 € | E16: =TBL_Povzetek[[#Totals],[PREDVIDENI STROŠKI]]-TBL_Povzetek[[#Totals],[DEJANSKI STROŠKI]] -> 14,050 € | F16: =SUBTOTAL(109,TBL_Povzetek[% PRORAČUNA]) -> 100%

Sheet Podrobnosti o proračunu
B2: PODROBNOSTI O PRORAČUNU
B4: POROČNO SLAVJE | C4: OCENJENI | D4: DEJANSKI | E4: ODSTOPANJE
B5: Prizorišče in najemnine | C5: 8,000.00 € | D5: 7,800.00 € | E5: =IF(OR(TBL_PoročnoSlavje[[#This Row],[OCENJENI]]="",TBL_PoročnoSlavje[[#This Row],[DEJANSKI]]=""),"",TBL_PoročnoSlavje[[#This Row],[OCENJENI]]-TBL_PoročnoSlavje[[#This Row],[DEJANSKI]]) -> 200.00 €
B6: Prehrana in storitev | C6: 4,000.00 € | D6: 4,200.00 € | E6: =IF(OR(TBL_PoročnoSlavje[[#This Row],[OCENJENI]]="",TBL_PoročnoSlavje[[#This Row],[DEJANSKI]]=""),"",TBL_PoročnoSlavje[[#This Row],[OCENJENI]]-TBL_PoročnoSlavje[[#This Row],[DEJANSKI]]) -> -200.00 €
B7: Pijače | C7: 1,000.00 € | D7: 800.00 € | E7: =IF(OR(TBL_PoročnoSlavje[[#This Row],[OCENJENI]]="",TBL_PoročnoSlavje[[#This Row],[DEJANSKI]]=""),"",TBL_PoročnoSlavje[[#This Row],[OCENJENI]]-TBL_PoročnoSlavje[[#This Row],[DEJANSKI]]) -> 200.00 €
B8: Torta | C8: 1,000.00 € | E8: =IF(OR(TBL_PoročnoSlavje[[#This Row],[OCENJENI]]="",TBL_PoročnoSlavje[[#This Row],[DEJANSKI]]=""),"",TBL_PoročnoSlavje[[#This Row],[OCENJENI]]-TBL_PoročnoSlavje[[#This Row],[DEJANSKI]]) -> 
B9: Razni stroški | C9: 500.00 € | E9: =IF(OR(TBL_PoročnoSlavje[[#This Row],[OCENJENI]]="",TBL_PoročnoSlavje[[#This Row],[DEJANSKI]]=""),"",TBL_PoročnoSlavje[[#This Row],[OCENJENI]]-TBL_PoročnoSlavje[[#This Row],[DEJANSKI]]) -> 
B10: SKUPAJ POROČNO SLAVJE | C10: =SUBTOTAL(109,TBL_PoročnoSlavje[OCENJENI]) -> 14,500.00 € | D10: =SUBTOTAL(109,TBL_PoročnoSlavje[DEJANSKI]) -> 12,800.00 € | E10: =TBL_PoročnoSlavje[[#Totals],[OCENJENI]]-TBL_PoročnoSlavje[[#Totals],[DEJANSKI]] -> 1,700.00 €
B13: OBLEKA | C13: PREDVIDENI | D13: DEJANSKI | E13: ODSTOPANJE
B14: Smoking, obleka in/ali obleke | C14: 3,000.00 € | D14: 2,900.00 € | E14: =IF(OR(TBL_Obleka[[#This Row],[PREDVIDENI]]="",TBL_Obleka[[#This Row],[DEJANSKI]]=""),"",TBL_Obleka[[#This Row],[PREDVIDENI]]-TBL_Obleka[[#This Row],[DEJANSKI]]) -> 100.00 €
B15: Spremembe | C15: 100.00 € | E15: =IF(OR(TBL_Obleka[[#This Row],[PREDVIDENI]]="",TBL_Obleka[[#This Row],[DEJANSKI]]=""),"",TBL_Obleka[[#This Row],[PREDVIDENI]]-TBL_Obleka[[#This Row],[DEJANSKI]]) -> 
B16: Pokrivalo in tančica | C16: 200.00 € | E16: =IF(OR(TBL_Obleka[[#This Row],[PREDVIDENI]]="",TBL_Obleka[[#This Row],[DEJANSKI]]=""),"",TBL_Obleka[[#This Row],[PREDVIDENI]]-TBL_Obleka[[#This Row],[DEJANSKI]]) -> 
B17: Dodatki | C17: 100.00 € | E17: =IF(OR(TBL_Obleka[[#This Row],[PREDVIDENI]]="",TBL_Obleka[[#This Row],[DEJANSKI]]=""),"",TBL_Obleka[[#This Row],[PREDVIDENI]]-TBL_Obleka[[#This Row],[DEJANSKI]]) -> 
B18: Lasje in ličila | C18: 500.00 € | E18: =IF(OR(TBL_Obleka[[#This Row],[PREDVIDENI]]="",TBL_Obleka[[#This Row],[DEJANSKI]]=""),"",TBL_Obleka[[#This Row],[PREDVIDENI]]-TBL_Obleka[[#This Row],[DEJANSKI]]) -> 
B19: Razni stroški | C19: 100.00 € | E19: =IF(OR(TBL_Obleka[[#This Row],[PREDVIDENI]]="",TBL_Obleka[[#This Row],[DEJANSKI]]=""),"",TBL_Obleka[[#This Row],[PREDVIDENI]]-TBL_Obleka[[#This Row],[DEJANSKI]]) -> 
B20: SKUPAJ OBLEKA | C20: =SUBTOTAL(109,TBL_Obleka[PREDVIDENI]) -> 4,000.00 € | D20: =SUBTOTAL(109,TBL_Obleka[DEJANSKI]) -> 2,900.00 € | E20: =TBL_Obleka[[#Totals],[PREDVIDENI]]-TBL_Obleka[[#Totals],[DEJANSKI]] -> 1,100.00 €
B23: CVETJE IN DEKORACIJA | C23: PREDVIDENI | D23: DEJANSKI | E23: ODSTOPANJE
B24: Cvetlična ureditev za slovesnost | C24: 1,000.00 € | E24: =IF(OR(TBL_CvetjeInDekoracija[[#This Row],[PREDVIDENI]]="",TBL_CvetjeInDekoracija[[#This Row],[DEJANSKI]]=""),"",TBL_CvetjeInDekoracija[[#This Row],[PREDVIDENI]]-TBL_CvetjeInDekoracija[[#This Row],[DEJANSKI]]) -> 
B25: Popki in košara za deklico s cvetjem | C25: 500.00 € | E25: =IF(OR(TBL_CvetjeInDekoracija[[#This Row],[PREDVIDENI]]="",TBL_CvetjeInDekoracija[[#This Row],[DEJANSKI]]=""),"",TBL_CvetjeInDekoracija[[#This Row],[PREDVIDENI]]-TBL_CvetjeInDekoracija[[#This Row],[DEJANSKI]]) -> 
B26: Blazina z obročem | C26: 100.00 € | E26: =IF(OR(TBL_CvetjeInDekoracija[[#This Row],[PREDVIDENI]]="",TBL_CvetjeInDekoracija[[#This Row],[DEJANSKI]]=""),"",TBL_CvetjeInDekoracija[[#This Row],[PREDVIDENI]]-TBL_CvetjeInDekoracija[[#This Row],[DEJANSKI]]) -> 
B27: Šopki | C27: 500.00 € | E27: =IF(OR(TBL_CvetjeInDekoracija[[#This Row],[PREDVIDENI]]="",TBL_CvetjeInDekoracija[[#This Row],[DEJANSKI]]=""),"",TBL_CvetjeInDekoracija[[#This Row],[PREDVIDENI]]-TBL_CvetjeInDekoracija[[#This Row],[DEJANSKI]]) -> 
B28: Naprsni šopki | C28: 100.00 € | E28: =IF(OR(TBL_CvetjeInDekoracija[[#This Row],[PREDVIDENI]]="",TBL_CvetjeInDekoracija[[#This Row],[DEJANSKI]]=""),"",TBL_CvetjeInDekoracija[[#This Row],[PREDVIDENI]]-TBL_CvetjeInDekoracija[[#This Row],[DEJANSKI]]) -> 
B29: Zapestni šopki | C29: 200.00 € | E29: =IF(OR(TBL_CvetjeInDekoracija[[#This Row],[PREDVIDENI]]="",TBL_CvetjeInDekoracija[[#This Row],[DEJANSKI]]=""),"",TBL_CvetjeInDekoracija[[#This Row],[PREDVIDENI]]-TBL_CvetjeInDekoracija[[#This Row],[DEJANSKI]]) -> 
B30: Okrasne dekoracije | C30: 300.00 € | E30: =IF(OR(TBL_CvetjeInDekoracija[[#This Row],[PREDVIDENI]]="",TBL_CvetjeInDekoracija[[#This Row],[DEJANSKI]]=""),"",TBL_CvetjeInDekoracija[[#This Row],[PREDVIDENI]]-TBL_CvetjeInDekoracija[[#This Row],[DEJANSKI]]) -> 
B31: Osvetlitev | C31: 200.00 € | E31: =IF(OR(TBL_CvetjeInDekoracija[[#This Row],[PREDVIDENI]]="",TBL_CvetjeInDekoracija[[#This Row],[DEJANSKI]]=""),"",TBL_CvetjeInDekoracija[[#This Row],[PREDVIDENI]]-TBL_CvetjeInDekoracija[[#This Row],[DEJANSKI]]) -> 
B32: Razni stroški | C32: 100.00 € | E32: =IF(OR(TBL_CvetjeInDekoracija[[#This Row],[PREDVIDENI]]="",TBL_CvetjeInDekoracija[[#This Row],[DEJANSKI]]=""),"",TBL_CvetjeInDekoracija[[#This Row],[PREDVIDENI]]-TBL_CvetjeInDekoracija[[#This Row],[DEJANSKI]]) -> 
B33: SKUPAJ CVETJE IN DEKORACIJA | C33: =SUBTOTAL(109,TBL_CvetjeInDekoracija[PREDVIDENI]) -> 3,000.00 € | D33: =SUBTOTAL(109,TBL_CvetjeInDekoracija[DEJANSKI]) -> 0.00 € | E33: =TBL_CvetjeInDekoracija[[#Totals],[PREDVIDENI]]-TBL_CvetjeInDekoracija[[#Totals],[DEJANSKI]] -> 3,000.00 €
B36: GLASBA | C36: PREDVIDENI | D36: DEJANSKI | E36: ODSTOPANJE
B37: Glasbeniki slovesnosti | C37: 700.00 € | E37: =IF(OR(TBL_Glasba[[#This Row],[PREDVIDENI]]="",TBL_Glasba[[#This Row],[DEJANSKI]]=""),"",TBL_Glasba[[#This Row],[PREDVIDENI]]-TBL_Glasba[[#This Row],[DEJANSKI]]) -> 
B38: Glasbeniki v koktajl urah | C38: 300.00 € | E38: =IF(OR(TBL_Glasba[[#This Row],[PREDVIDENI]]="",TBL_Glasba[[#This Row],[DEJANSKI]]=""),"",TBL_Glasba[[#This Row],[PREDVIDENI]]-TBL_Glasba[[#This Row],[DEJANSKI]]) -> 
B39: Skupina za sprejem, DJ ali zabava | C39: 200.00 € | E39: =IF(OR(TBL_Glasba[[#This Row],[PREDVIDENI]]="",TBL_Glasba[[#This Row],[DEJANSKI]]=""),"",TBL_Glasba[[#This Row],[PREDVIDENI]]-TBL_Glasba[[#This Row],[DEJANSKI]]) -> 
B40: Izposoja zvočne opreme ali plesne talne obloge | C40: 400.00 € | E40: =IF(OR(TBL_Glasba[[#This Row],[PREDVIDENI]]="",TBL_Glasba[[#This Row],[DEJANSKI]]=""),"",TBL_Glasba[[#This Row],[PREDVIDENI]]-TBL_Glasba[[#This Row],[DEJANSKI]]) -> 
B41: Razni stroški | C41: 200.00 € | E41: =IF(OR(TBL_Glasba[[#This Row],[PREDVIDENI]]="",TBL_Glasba[[#This Row],[DEJANSKI]]=""),"",TBL_Glasba[[#This Row],[PREDVIDENI]]-TBL_Glasba[[#This Row],[DEJANSKI]]) -> 
B42: SKUPAJ GLASBA | C42: =SUBTOTAL(109,TBL_Glasba[PREDVIDENI]) -> 1,800.00 € | D42: =SUBTOTAL(109,TBL_Glasba[DEJANSKI]) -> 0.00 € | E42: =TBL_Glasba[[#Totals],[PREDVIDENI]]-TBL_Glasba[[#Totals],[DEJANSKI]] -> 1,800.00 €
B45: FOTOGRAFIRANJE IN VIDEO | C45: PREDVIDENI | D45: DEJANSKI | E45: ODSTOPANJE
B46: Fotografiranje | C46: 1,000.00 € | E46: =IF(OR(TBL_FotografiranjeInVideo[[#This Row],[PREDVIDENI]]="",TBL_FotografiranjeInVideo[[#This Row],[DEJANSKI]]=""),"",TBL_FotografiranjeInVideo[[#This Row],[PREDVIDENI]]-TBL_FotografiranjeInVideo[[#This Row],[DEJANSKI]]) -> 
B47: Videoposnetki | C47: 800.00 € | E47: =IF(OR(TBL_FotografiranjeInVideo[[#This Row],[PREDVIDENI]]="",TBL_FotografiranjeInVideo[[#This Row],[DEJANSKI]]=""),"",TBL_FotografiranjeInVideo[[#This Row],[PREDVIDENI]]-TBL_FotografiranjeInVideo[[#This Row],[DEJANSKI]]) -> 
B48: Dodatni tiski in albumi | C48: 500.00 € | E48: =IF(OR(TBL_FotografiranjeInVideo[[#This Row],[PREDVIDENI]]="",TBL_FotografiranjeInVideo[[#This Row],[DEJANSKI]]=""),"",TBL_FotografiranjeInVideo[[#This Row],[PREDVIDENI]]-TBL_FotografiranjeInVideo[[#This Row],[DEJANSKI]]) -> 
B49: Razni stroški | C49: 200.00 € | E49: =IF(OR(TBL_FotografiranjeInVideo[[#This Row],[PREDVIDENI]]="",TBL_FotografiranjeInVideo[[#This Row],[DEJANSKI]]=""),"",TBL_FotografiranjeInVideo[[#This Row],[PREDVIDENI]]-TBL_FotografiranjeInVideo[[#This Row],[DEJANSKI]]) -> 
B50: SKUPAJ FOTOGRAFIRANJE IN VIDEO | C50: =SUBTOTAL(109,TBL_FotografiranjeInVideo[PREDVIDENI]) -> 2,500.00 € | D50: =SUBTOTAL(109,TBL_FotografiranjeInVideo[DEJANSKI]) -> 0.00 € | E50: =TBL_FotografiranjeInVideo[[#Totals],[PREDVIDENI]]-TBL_FotografiranjeInVideo[[#Totals],[DEJANSKI]] -> 2,500.00 €
B53: SPOMINKI & DARILA | C53: PREDVIDENI | D53: DEJANSKI | E53: ODSTOPANJE
B54: Darila za dobrodošlico | C54: 700.00 € | E54: =IF(OR(TBL_SpominkiInDarila[[#This Row],[PREDVIDENI]]="",TBL_SpominkiInDarila[[#This Row],[DEJANSKI]]=""),"",TBL_SpominkiInDarila[[#This Row],[PREDVIDENI]]-TBL_SpominkiInDarila[[#This Row],[DEJANSKI]]) -> 
B55: Zabavna darila | C55: 200.00 € | E55: =IF(OR(TBL_SpominkiInDarila[[#This Row],[PREDVIDENI]]="",TBL_SpominkiInDarila[[#This Row],[DEJANSKI]]=""),"",TBL_SpominkiInDarila[[#This Row],[PREDVIDENI]]-TBL_SpominkiInDarila[[#This Row],[DEJANSKI]]) -> 
B56: Razni stroški | C56: 200.00 € | E56: =IF(OR(TBL_SpominkiInDarila[[#This Row],[PREDVIDENI]]="",TBL_SpominkiInDarila[[#This Row],[DEJANSKI]]=""),"",TBL_SpominkiInDarila[[#This Row],[PREDVIDENI]]-TBL_SpominkiInDarila[[#This Row],[DEJANSKI]]) -> 
B57: SKUPAJ SPOMINKI & DARILA | C57: =SUBTOTAL(109,TBL_SpominkiInDarila[PREDVIDENI]) -> 1,100.00 € | D57: =SUBTOTAL(109,TBL_SpominkiInDarila[DEJANSKI]) -> 0.00 € | E57: =TBL_SpominkiInDarila[[#Totals],[PREDVIDENI]]-TBL_SpominkiInDarila[[#Totals],[DEJANSKI]] -> 1,100.00 €
B60: POROKA | C60: PREDVIDENI | D60: DEJANSKI | E60: ODSTOPANJE
B61: Pristojbina prizorišča | C61: 500.00 € | E61: =IF(OR(TBL_Poroka[[#This Row],[PREDVIDENI]]="",TBL_Poroka[[#This Row],[DEJANSKI]]=""),"",TBL_Poroka[[#This Row],[PREDVIDENI]]-TBL_Poroka[[#This Row],[DEJANSKI]]) -> 
B62: Uradna pristojbina ali darovanje za cerkev | C62: 200.00 € | E62: =IF(OR(TBL_Poroka[[#This Row],[PREDVIDENI]]="",TBL_Poroka[[#This Row],[DEJANSKI]]=""),"",TBL_Poroka[[#This Row],[PREDVIDENI]]-TBL_Poroka[[#This Row],[DEJANSKI]]) -> 
B63: Razni stroški | C63: 100.00 € | E63: =IF(OR(TBL_Poroka[[#This Row],[PREDVIDENI]]="",TBL_Poroka[[#This Row],[DEJANSKI]]=""),"",TBL_Poroka[[#This Row],[PREDVIDENI]]-TBL_Poroka[[#This Row],[DEJANSKI]]) -> 
B64: SKUPAJ POROKA | C64: =SUBTOTAL(109,TBL_Poroka[PREDVIDENI]) -> 800.00 € | D64: =SUBTOTAL(109,TBL_Poroka[DEJANSKI]) -> 0.00 € | E64: =TBL_Poroka[[#Totals],[PREDVIDENI]]-TBL_Poroka[[#Totals],[DEJANSKI]] -> 800.00 €
B67: PISARNIŠKI MATERIAL | C67: PREDVIDENI | D67: DEJANSKI | E67: ODSTOPANJE
B68: Kartice z datumom poroke | C68: 50.00 € | E68: =IF(OR(TBL_PisarniškiMaterial[[#This Row],[PREDVIDENI]]="",TBL_PisarniškiMaterial[[#This Row],[DEJANSKI]]=""),"",TBL_PisarniškiMaterial[[#This Row],[PREDVIDENI]]-TBL_PisarniškiMaterial[[#This Row],[DEJANSKI]]) -> 
B69: Povabila in odgovori nanje | C69: 100.00 € | E69: =IF(OR(TBL_PisarniškiMaterial[[#This Row],[PREDVIDENI]]="",TBL_PisarniškiMaterial[[#This Row],[DEJANSKI]]=""),"",TBL_PisarniškiMaterial[[#This Row],[PREDVIDENI]]-TBL_PisarniškiMaterial[[#This Row],[DEJANSKI]]) -> 
B70: Programi | C70: 50.00 € | E70: =IF(OR(TBL_PisarniškiMaterial[[#This Row],[PREDVIDENI]]="",TBL_PisarniškiMaterial[[#This Row],[DEJANSKI]]=""),"",TBL_PisarniškiMaterial[[#This Row],[PREDVIDENI]]-TBL_PisarniškiMaterial[[#This Row],[DEJANSKI]]) -> 
B71: Sedežni razpored in kartice za sedenje | C71: 50.00 € | E71: =IF(OR(TBL_PisarniškiMaterial[[#This Row],[PREDVIDENI]]="",TBL_PisarniškiMaterial[[#This Row],[DEJANSKI]]=""),"",TBL_PisarniškiMaterial[[#This Row],[PREDVIDENI]]-TBL_PisarniškiMaterial[[#This Row],[DEJANSKI]]) -> 
B72: Menijske kartice | C72: 50.00 € | E72: =IF(OR(TBL_PisarniškiMaterial[[#This Row],[PREDVIDENI]]="",TBL_PisarniškiMaterial[[#This Row],[DEJANSKI]]=""),"",TBL_PisarniškiMaterial[[#This Row],[PREDVIDENI]]-TBL_PisarniškiMaterial[[#This Row],[DEJANSKI]]) -> 
B73: Zahvalne kartice | C73: 50.00 € | E73: =IF(OR(TBL_PisarniškiMaterial[[#This Row],[PREDVIDENI]]="",TBL_PisarniškiMaterial[[#This Row],[DEJANSKI]]=""),"",TBL_PisarniškiMaterial[[#This Row],[PREDVIDENI]]-TBL_PisarniškiMaterial[[#This Row],[DEJANSKI]]) -> 
B74: Poštnina | C74: 50.00 € | E74: =IF(OR(TBL_PisarniškiMaterial[[#This Row],[PREDVIDENI]]="",TBL_PisarniškiMaterial[[#This Row],[DEJANSKI]]=""),"",TBL_PisarniškiMaterial[[#This Row],[PREDVIDENI]]-TBL_PisarniškiMaterial[[#This Row],[DEJANSKI]]) -> 
B75: Razni stroški | C75: 100.00 € | E75: =IF(OR(TBL_PisarniškiMaterial[[#This Row],[PREDVIDENI]]="",TBL_PisarniškiMaterial[[#This Row],[DEJANSKI]]=""),"",TBL_PisarniškiMaterial[[#This Row],[PREDVIDENI]]-TBL_PisarniškiMaterial[[#This Row],[DEJANSKI]]) -> 
B76: SKUPAJ PISARNIŠKI MATERIAL | C76: =SUBTOTAL(109,TBL_PisarniškiMaterial[PREDVIDENI]) -> 500.00 € | D76: =SUBTOTAL(109,TBL_PisarniškiMaterial[DEJANSKI]) -> 0.00 € | E76: =TBL_PisarniškiMaterial[[#Totals],[PREDVIDENI]]-TBL_PisarniškiMaterial[[#Totals],[DEJANSKI]] -> 500.00 €
B79: POROČNA PRSTANA | C79: PREDVIDENI | D79: DEJANSKI | E79: ODSTOPANJE
B80: Poročna prstana | C80: 1,000.00 € | E80: =IF(OR(TBL_PoročnaPrstana[[#This Row],[PREDVIDENI]]="",TBL_PoročnaPrstana[[#This Row],[DEJANSKI]]=""),"",TBL_PoročnaPrstana[[#This Row],[PREDVIDENI]]-TBL_PoročnaPrstana[[#This Row],[DEJANSKI]]) -> 
B81: Dodatki za prstan | C81: 100.00 € | E81: =IF(OR(TBL_PoročnaPrstana[[#This Row],[PREDVIDENI]]="",TBL_PoročnaPrstana[[#This Row],[DEJANSKI]]=""),"",TBL_PoročnaPrstana[[#This Row],[PREDVIDENI]]-TBL_PoročnaPrstana[[#This Row],[DEJANSKI]]) -> 
B82: SKUPAJ POROČNA PRSTANA | C82: =SUBTOTAL(109,TBL_PoročnaPrstana[PREDVIDENI]) -> 1,100.00 € | D82: =SUBTOTAL(109,TBL_PoročnaPrstana[DEJANSKI]) -> 0.00 € | E82: =TBL_PoročnaPrstana[[#Totals],[PREDVIDENI]]-TBL_PoročnaPrstana[[#Totals],[DEJANSKI]] -> 1,100.00 €
B85: PREVOZ | C85: PREDVIDENI | D85: DEJANSKI | E85: ODSTOPANJE
B86: Najem glavnega avtomobila | C86: 100.00 € | E86: =IF(OR(TBL_Prevoz[[#This Row],[PREDVIDENI]]="",TBL_Prevoz[[#This Row],[DEJANSKI]]=""),"",TBL_Prevoz[[#This Row],[PREDVIDENI]]-TBL_Prevoz[[#This Row],[DEJANSKI]]) -> 
B87: Najem avtomobila za goste | C87: 100.00 € | E87: =IF(OR(TBL_Prevoz[[#This Row],[PREDVIDENI]]="",TBL_Prevoz[[#This Row],[DEJANSKI]]=""),"",TBL_Prevoz[[#This Row],[PREDVIDENI]]-TBL_Prevoz[[#This Row],[DEJANSKI]]) -> 
B88: Prevoz za goste, ki so zunaj mesta | C88: 100.00 € | E88: =IF(OR(TBL_Prevoz[[#This Row],[PREDVIDENI]]="",TBL_Prevoz[[#This Row],[DEJANSKI]]=""),"",TBL_Prevoz[[#This Row],[PREDVIDENI]]-TBL_Prevoz[[#This Row],[DEJANSKI]]) -> 
B89: Valetno parkiranje | C89: 50.00 € | E89: =IF(OR(TBL_Prevoz[[#This Row],[PREDVIDENI]]="",TBL_Prevoz[[#This Row],[DEJANSKI]]=""),"",TBL_Prevoz[[#This Row],[PREDVIDENI]]-TBL_Prevoz[[#This Row],[DEJANSKI]]) -> 
B90: Razni stroški | C90: 100.00 € | E90: =IF(OR(TBL_Prevoz[[#This Row],[PREDVIDENI]]="",TBL_Prevoz[[#This Row],[DEJANSKI]]=""),"",TBL_Prevoz[[#This Row],[PREDVIDENI]]-TBL_Prevoz[[#This Row],[DEJANSKI]]) -> 
B91: SKUPAJ PREVOZ | C91: =SUBTOTAL(109,TBL_Prevoz[PREDVIDENI]) -> 450.00 € | D91: =SUBTOTAL(109,TBL_Prevoz[DEJANSKI]) -> 0.00 € | E91: =TBL_Prevoz[[#Totals],[PREDVIDENI]]-TBL_Prevoz[[#Totals],[DEJANSKI]] -> 450.00 €
